bitfinex/quotes_BTCUSD_20251116
["timestamp","ask_amount","ask_price","bid_price","bid_amount"]
[1763297059425,0.00918,95904.0,95902.0,0.01916188]
[1763297059629,0.00918,95904.0,95903.0,0.03730976]
[1763297059851,0.01594,95903.0,95902.0,0.01916188]
[1763297060622,0.01594,95903.0,95902.0,0.00013519]
[1763297060791,0.21772265,95904.0,95902.0,0.00013519]
[1763297060997,0.00918,95912.0,95905.0,0.20853811]
[1763297061197,0.00918,95912.0,95908.0,0.03730954]
[1763297061429,0.00918,95912.0,95911.0,0.03730954]
[1763297061540,0.00918,95912.0,95911.0,0.0322607]
[1763297061982,0.00987,95923.0,95914.0,0.20852006]
[1763297062193,0.00987,95923.0,95922.0,0.10402093]
[1763297062390,0.20849211,95927.0,95922.0,0.10402093]
[1763297062614,0.20849211,95927.0,95922.0,0.14131328]
[1763297062818,0.20849211,95927.0,95923.0,0.03053582]
[1763297063017,0.20849839,95924.0,95923.0,0.05138587]
[1763297063230,0.0002,95940.0,95929.0,0.20848613]
[1763297063519,0.0002,95940.0,95930.0,0.02408]
[1763297064187,0.00987,95939.0,95928.0,0.2084897]
[1763297064306,0.00987,95939.0,95929.0,0.0322607]
[1763297064709,0.002,95931.0,95929.0,0.0322607]
[1763297064909,0.002,95931.0,95930.0,0.20848535]
[1763297065280,0.001,95931.0,95930.0,0.20848535]
[1763297065918,0.00650069,95931.0,95930.0,0.20848535]
[1763297066069,0.00650069,95931.0,95930.0,0.03053582]
[1763297066492,0.00750069,95931.0,95930.0,0.03053582]
[1763297066702,0.00650069,95931.0,95930.0,0.03053582]
[1763297067110,0.00750069,95931.0,95930.0,0.03053582]
[1763297070375,0.00831668,95931.0,95930.0,0.03053582]
[1763297071830,0.23267986,95931.0,95922.0,0.10402093]
[1763297072037,0.21598387,95931.0,95928.0,0.055893]
[1763297072235,0.20848752,95929.0,95927.0,0.055893]
[1763297072886,0.01588,95928.0,95927.0,0.055893]
[1763297073030,0.22437187,95928.0,95924.0,0.055893]
[1763297073225,0.22437187,95928.0,95925.0,0.03684158]
[1763297073462,0.20849676,95925.0,95923.0,0.055893]
[1763297073664,0.20849676,95925.0,95924.0,0.10402093]
[1763297073915,0.00987,95930.0,95924.0,0.10402093]
[1763297074086,0.00987,95930.0,95927.0,0.03728498]
[1763297074815,0.01588,95928.0,95927.0,0.03728498]
[1763297075092,0.01588,95928.0,95927.0,0.05700487]
[1763297076078,0.21835707,95930.0,95927.0,0.05700487]
[1763297076326,0.00987,95930.0,95927.0,0.01971989]
[1763297076864,0.01087,95930.0,95927.0,0.01971989]
[1763297077034,0.00987,95930.0,95928.0,0.04307663]
[1763297077538,0.01087,95930.0,95928.0,0.04307663]
[1763297077737,0.22436752,95929.0,95928.0,0.04307663]
[1763297077897,0.22512912,95929.0,95928.0,0.04307663]
[1763297078296,0.20849187,95927.0,95926.0,0.03728498]
[1763297078501,0.22437187,95927.0,95925.0,0.03728498]
[1763297078704,0.22437622,95925.0,95924.0,0.10402093]
[1763297079949,0.22437622,95925.0,95921.0,0.03728498]
[1763297079950,0.20850274,95922.0,95921.0,0.03728498]
[1763297080156,0.22438274,95922.0,95920.0,0.03728498]
[1763297080378,0.22438274,95922.0,95921.0,0.10402093]
[1763297080379,0.20850274,95922.0,95921.0,0.10402093]
[1763297080530,0.20850274,95922.0,95921.0,0.11333873]
[1763297080740,0.20849903,95924.0,95921.0,0.11333873]
[1763297080985,0.20850274,95922.0,95921.0,0.11333873]
[1763297081219,0.00987,95930.0,95923.0,0.20849901]
[1763297081420,0.001,95922.0,95921.0,0.32184151]
[1763297081625,0.21835555,95930.0,95921.0,0.31252371]
[1763297081802,0.21835555,95930.0,95929.0,0.02797447]
[1763297081943,0.21835555,95930.0,95928.0,0.02797447]
[1763297082347,0.2084955,95926.0,95924.0,0.0372993]
[1763297082541,0.2084955,95926.0,95923.0,0.0372993]
[1763297082743,0.2084897,95928.0,95923.0,0.0372993]
[1763297083228,0.2084897,95928.0,95924.0,0.0372993]
[1763297083410,0.20849187,95927.0,95925.0,0.0372993]
[1763297083811,0.20849187,95927.0,95924.0,0.0372993]
[1763297084021,0.20849622,95925.0,95924.0,0.0372993]
[1763297084224,0.20914903,95925.0,95924.0,0.0372993]
[1763297084466,0.20850069,95923.0,95921.0,0.10402093]
[1763297084809,0.20849839,95924.0,95921.0,0.14086407]
[1763297085015,0.20849839,95924.0,95923.0,0.03730834]
[1763297085215,0.2084897,95928.0,95921.0,0.14086407]
[1763297085216,0.2084897,95928.0,95921.0,0.10402093]
[1763297085415,0.20849463,95926.0,95924.0,0.03730759]
[1763297085955,0.2084897,95928.0,95924.0,0.03730759]
[1763297086177,0.20849456,95926.0,95924.0,0.03730759]
[1763297087229,0.00987,95930.0,95924.0,0.03730759]
[1763297087579,0.00987,95930.0,95925.0,0.03730759]
[1763297088147,0.20849212,95927.0,95925.0,0.03730759]
[1763297088339,0.20849212,95927.0,95926.0,0.03730759]
[1763297088899,0.20848752,95929.0,95926.0,0.03730759]
[1763297089094,0.20849187,95927.0,95926.0,0.03730759]
[1763297089246,0.20848752,95929.0,95923.0,0.20849902]
[1763297089448,0.20848752,95929.0,95928.0,0.03734567]
[1763297090117,0.001,95931.0,95929.0,0.23245752]
[1763297090426,0.0017888,95930.0,95929.0,0.04855447]
[1763297090602,0.0017888,95930.0,95929.0,0.02458447]
[1763297090821,0.0275388,95930.0,95921.0,0.10402093]
[1763297091004,0.21398845,95929.0,95921.0,0.17864604]
[1763297091212,0.00550069,95929.0,95925.0,0.20849569]
[1763297091415,0.00550069,95929.0,95922.0,0.07462511]
[1763297091569,0.00550069,95929.0,95922.0,0.28312602]
[1763297091772,0.00550069,95929.0,95926.0,0.2084938]
[1763297092300,0.00550069,95929.0,95924.0,0.20849821]
[1763297092498,0.00550069,95929.0,95926.0,0.20849361]
[1763297093545,0.00550069,95929.0,95923.0,0.28311759]
[1763297093751,0.2084897,95928.0,95923.0,0.07462511]
[1763297093954,0.00550069,95929.0,95921.0,0.10402093]
[1763297093955,0.00987,95924.0,95922.0,0.07462511]
[1763297094079,0.00987,95924.0,95921.0,0.10402093]
[1763297094281,0.20850056,95923.0,95921.0,0.10402093]
[1763297094483,0.00987,95924.0,95921.0,0.10402093]
[1763297095091,0.20850056,95923.0,95921.0,0.10402093]
[1763297095335,0.00987,95924.0,95921.0,0.10402093]
[1763297096332,0.00987,95924.0,95922.0,0.35450267]
[1763297096536,0.00987,95924.0,95922.0,0.146]
[1763297096716,0.00059841,95923.0,95922.0,0.146]
[1763297096920,0.00059841,95923.0,95922.0,0.35450274]
[1763297097507,0.00059841,95923.0,95922.0,0.146]
[1763297098106,0.00059841,95923.0,95922.0,0.35450274]
[1763297098748,0.00059841,95923.0,95922.0,0.146]
[1763297099335,0.00059841,95923.0,95922.0,0.35450274]
[1763297100432,0.00059841,95923.0,95922.0,0.146]
[1763297100654,0.00059841,95923.0,95922.0,0.16685027]
[1763297101337,0.00059841,95923.0,95922.0,0.18941874]
[1763297103971,0.00059841,95923.0,95922.0,0.19041874]
[1763297107860,0.00059841,95923.0,95922.0,0.147]
[1763297108061,0.22535897,95923.0,95922.0,0.147]
[1763297108464,0.00059841,95923.0,95922.0,0.20043082]
[1763297108672,0.00059841,95923.0,95922.0,0.19943082]
[1763297108873,0.00059841,95923.0,95922.0,0.38708329]
[1763297109490,0.00059841,95923.0,95922.0,0.24108329]
[1763297111191,0.00059841,95923.0,95922.0,0.03258055]
[1763297111387,0.01685841,95923.0,95922.0,0.03258055]
[1763297111708,0.20850274,95922.0,95921.0,0.10402093]
[1763297112712,0.20851795,95915.0,95913.0,0.07478456]
[1763297112922,0.20850963,95919.0,95910.0,0.29519312]
[1763297113129,0.20851862,95915.0,95910.0,0.08666456]
[1763297113347,0.20851862,95915.0,95911.0,0.05037354]
[1763297113556,0.2085227,95913.0,95911.0,0.05037354]
[1763297114009,0.20851862,95915.0,95911.0,0.05037354]
[1763297114849,0.20851382,95917.0,95911.0,0.05037354]
[1763297115071,0.20851798,95915.0,95911.0,0.05037354]
[1763297115287,0.20851798,95915.0,95912.0,0.01242298]
[1763297115807,0.20851382,95917.0,95912.0,0.01242298]
[1763297116005,0.20851382,95917.0,95916.0,0.10402093]
[1763297117318,0.20853317,95908.0,95907.0,0.07478456]
[1763297117537,0.22406532,95917.0,95907.0,0.01913807]
[1763297117727,0.01555,95917.0,95916.0,0.10402093]
[1763297120294,0.01555,95917.0,95912.0,0.05606372]
[1763297120295,0.2085223,95913.0,95912.0,0.05606372]
[1763297120502,0.2240723,95913.0,95911.0,0.03736429]
[1763297120908,0.0382,95912.0,95911.0,0.03736429]
[1763297121341,0.20852665,95911.0,95910.0,0.03736429]
[1763297121559,0.23117665,95911.0,95910.0,0.03736429]
[1763297121763,0.20853317,95908.0,95907.0,0.03736429]
[1763297122054,0.22409404,95903.0,95902.0,0.00013519]
[1763297124251,0.00024477,95910.0,95903.0,0.20854404]
[1763297124476,0.00024477,95910.0,95905.0,0.05606372]
[1763297124674,0.00024477,95910.0,95907.0,0.05606372]
[1763297124887,0.20853535,95907.0,95905.0,0.05606372]
[1763297125085,0.01555,95908.0,95905.0,0.03732588]
[1763297125289,0.20853535,95907.0,95905.0,0.03732588]
[1763297125487,0.00024477,95910.0,95905.0,0.03732588]
[1763297125696,0.00124477,95910.0,95905.0,0.03732588]
[1763297125892,0.20853752,95906.0,95905.0,0.03732588]
[1763297126115,0.20853317,95908.0,95905.0,0.03732588]
[1763297126316,0.20853317,95908.0,95904.0,0.03732588]
[1763297126514,0.2085383,95906.0,95904.0,0.03732588]
[1763297126977,0.20853317,95908.0,95904.0,0.03732588]
[1763297127805,0.20853535,95907.0,95905.0,0.03732588]
[1763297128003,0.20853155,95909.0,95905.0,0.03732588]
[1763297128633,0.20853648,95907.0,95905.0,0.03732588]
[1763297129586,0.20853598,95907.0,95905.0,0.03732588]
[1763297129801,0.02508,95906.0,95905.0,0.03732588]
[1763297129956,0.2085397,95905.0,95903.0,0.03732588]
[1763297130156,0.01555,95903.0,95902.0,0.00013519]
[1763297131112,0.00953,95906.0,95902.0,0.00013519]
[1763297131302,0.21806804,95906.0,95905.0,0.02798654]
[1763297131442,0.00953,95906.0,95905.0,0.02798654]
[1763297132273,0.00024477,95910.0,95906.0,0.20853752]
[1763297132476,0.00024477,95910.0,95909.0,0.02798654]
[1763297132676,0.00024477,95910.0,95908.0,0.208533]
[1763297134372,0.00124477,95910.0,95908.0,0.24585888]
[1763297135820,0.00124477,95910.0,95908.0,0.208533]
[1763297137967,0.00124477,95910.0,95906.0,0.05606372]
[1763297138177,0.00124477,95910.0,95909.0,0.03735514]
[1763297138589,0.00124477,95910.0,95904.0,0.16008465]
[1763297138964,0.20977359,95910.0,95904.0,0.16008465]
[1763297139178,0.20977359,95910.0,95904.0,0.36862462]
[1763297139376,0.00124477,95910.0,95905.0,0.07915372]
[1763297139561,0.00124477,95910.0,95905.0,0.09052372]
[1763297139762,0.00024477,95910.0,95908.0,0.20853314]
[1763297139982,0.00124477,95910.0,95908.0,0.20853314]
[1763297140366,0.00024477,95910.0,95908.0,0.20853314]
[1763297140562,0.00124477,95910.0,95908.0,0.20853314]
[1763297141042,0.00024477,95910.0,95908.0,0.20853314]
[1763297141248,0.00124477,95910.0,95908.0,0.20853314]
[1763297141393,0.00124477,95910.0,95909.0,0.06279652]
[1763297141599,0.00124477,95910.0,95908.0,0.20853314]
[1763297141780,0.00124477,95910.0,95909.0,0.02309]
[1763297142135,0.00124477,95910.0,95909.0,0.34609]
[1763297142292,0.00124477,95910.0,95909.0,0.38950874]
[1763297142494,0.00124477,95910.0,95909.0,0.36641874]
[1763297143219,0.00024477,95910.0,95909.0,0.36641874]
[1763297143418,0.00024477,95910.0,95909.0,0.36741874]
[1763297144059,0.00024477,95910.0,95909.0,0.36841874]
[1763297156336,0.00024477,95910.0,95909.0,0.36741874]
[1763297156695,0.00024477,95910.0,95909.0,0.323]
[1763297157140,0.00024477,95910.0,95908.0,0.20853314]
[1763297157355,0.00024477,95910.0,95909.0,0.02309]
[1763297157722,0.00024477,95910.0,95909.0,0.02409]
[1763297158261,0.00024477,95910.0,95909.0,0.001]
[1763297159671,0.00024477,95910.0,95909.0,0.209531]
[1763297160563,0.01557477,95910.0,95909.0,0.001]
[1763297160942,0.04690801,95910.0,95909.0,0.001]
[1763297161702,0.20854404,95903.0,95902.0,0.00013519]
[1763297161849,0.22415404,95903.0,95902.0,0.00013519]
[1763297163392,0.20854136,95905.0,95902.0,0.00013519]
[1763297163632,0.01561,95903.0,95902.0,0.00013519]
[1763297163814,0.02211069,95903.0,95902.0,0.00013519]
[1763297164799,0.02311069,95903.0,95902.0,0.00013519]
[1763297165011,0.02211069,95903.0,95902.0,0.00013519]
[1763297165986,0.02111069,95903.0,95902.0,0.00013519]
[1763297166219,0.43379495,95903.0,95902.0,0.00013519]
[1763297166447,0.34611069,95903.0,95902.0,0.00013519]
[1763297169164,0.35669215,95903.0,95902.0,0.00013519]
[1763297169820,0.34611069,95903.0,95902.0,0.00013519]
[1763297171218,0.37745221,95903.0,95902.0,0.00013519]
[1763297171427,0.50057307,95903.0,95902.0,0.00013519]
[1763297172198,0.49957307,95903.0,95902.0,0.00013519]
[1763297172478,0.49857307,95903.0,95902.0,0.00013519]
[1763297172815,0.39590369,95903.0,95902.0,0.00013519]
[1763297173036,0.39790369,95903.0,95902.0,0.00013519]
[1763297173238,0.39690369,95903.0,95902.0,0.00013519]
[1763297173436,0.20863542,95861.0,95860.0,0.02799974]
[1763297173640,0.22424542,95861.0,95860.0,0.00013521]
[1763297176695,0.20863324,95862.0,95860.0,0.00013521]
[1763297176898,0.20863324,95862.0,95861.0,0.10402093]
[1763297177897,0.22593324,95862.0,95860.0,0.00013521]
[1763297178099,0.0163,95861.0,95860.0,0.00013521]
[1763297179457,0.0163,95861.0,95832.0,0.02799974]
[1763297179458,0.20869202,95835.0,95832.0,0.02799974]
[1763297179758,0.20870073,95831.0,95830.0,0.0004]
[1763297179963,0.22500073,95831.0,95830.0,0.00085106]
[1763297182676,0.3142084,95831.0,95830.0,0.00085106]
[1763297182924,0.6372084,95831.0,95830.0,0.00085106]
[1763297183928,0.54800073,95831.0,95830.0,0.00085106]
[1763297184289,0.56740126,95831.0,95830.0,0.00085106]
[1763297184700,0.01940053,95831.0,95830.0,0.00085106]
[1763297184896,0.00964,95833.0,95830.0,0.00085106]
[1763297185311,0.20869964,95832.0,95830.0,0.00085106]
[1763297186539,0.01043187,95860.0,95831.0,0.02459]
[1763297186831,0.001,95862.0,95859.0,0.02727]
[1763297187015,0.001,95862.0,95860.0,0.02459]
[1763297187530,0.001,95862.0,95859.0,0.03924974]
[1763297187531,0.001,95862.0,95859.0,0.03910677]
[1763297188178,0.001,95862.0,95861.0,0.10402093]
[1763297188324,0.001,95862.0,95861.0,0.1318777]
[1763297189517,0.001,95862.0,95861.0,0.10402093]
[1763297194287,0.001,95862.0,95859.0,0.01125]
[1763297194288,0.20863542,95861.0,95859.0,0.03732729]
[1763297194491,0.20863542,95861.0,95852.0,0.01196]
[1763297194492,0.20864194,95858.0,95855.0,0.03732729]
[1763297194690,0.20864194,95858.0,95852.0,0.146]
[1763297194691,0.20864194,95858.0,95857.0,0.02792903]
[1763297194848,0.22809455,95858.0,95857.0,0.02792903]
[1763297195484,0.20864709,95856.0,95852.0,0.18332729]
[1763297195697,0.20864709,95856.0,95853.0,0.03732729]
[1763297196107,0.20864194,95858.0,95853.0,0.03732729]
[1763297196259,0.01945858,95857.0,95854.0,0.03732729]
[1763297196470,0.01945858,95856.0,95854.0,0.03732729]
[1763297196669,0.20863564,95861.0,95854.0,0.03732729]
[1763297196913,0.01946448,95860.0,95859.0,0.02794663]
[1763297197307,0.01946448,95860.0,95855.0,0.03732729]
[1763297197987,0.20864194,95858.0,95855.0,0.03732729]
[1763297198228,0.01946448,95857.0,95855.0,0.03732729]
[1763297198408,0.01946448,95857.0,95856.0,0.03732729]
[1763297199293,0.20864117,95859.0,95853.0,0.20865251]
[1763297199493,0.01946448,95858.0,95857.0,0.03729487]
[1763297200306,0.01946448,95858.0,95853.0,0.20865251]
[1763297200648,0.2086373,95861.0,95857.0,0.03730441]
[1763297200649,0.20864104,95859.0,95857.0,0.03730441]
[1763297200863,0.20865283,95853.0,95852.0,0.05599094]
[1763297202144,0.20865283,95853.0,95851.0,0.146]
[1763297202346,0.20864412,95857.0,95842.0,0.0745956]
[1763297202347,0.20867024,95845.0,95844.0,0.01125]
[1763297202556,0.20867024,95845.0,95844.0,0.00013524]
[1763297203076,0.20865718,95851.0,95844.0,0.00013524]
[1763297203077,0.20865718,95851.0,95844.0,0.01209524]
[1763297203380,0.01949137,95850.0,95847.0,0.05599582]
[1763297204082,0.01949137,95850.0,95848.0,0.05599582]
[1763297204282,0.20866154,95849.0,95848.0,0.05599582]
[1763297204500,0.20866154,95849.0,95847.0,0.05599582]
[1763297205906,0.20866154,95849.0,95846.0,0.05599582]
[1763297205907,0.01561,95848.0,95846.0,0.05599582]
[1763297206104,0.22428024,95845.0,95844.0,0.00013524]
[1763297206302,0.24377535,95845.0,95844.0,0.0281514]
[1763297206511,0.24377535,95845.0,95844.0,0.00013524]
[1763297214209,0.323,95855.0,95844.0,0.01209524]
[1763297214436,0.01951482,95854.0,95852.0,0.10402093]
[1763297214633,0.20863028,95864.0,95854.0,0.0166]
[1763297214810,0.20863028,95864.0,95861.0,0.02856]
[1763297215010,0.20963324,95862.0,95861.0,0.02856]
[1763297215231,0.001,95862.0,95861.0,0.02856]
[1763297215585,0.20963324,95862.0,95861.0,0.02856]
[1763297216814,0.20963324,95862.0,95861.0,0.0565919]
[1763297217314,0.20963324,95862.0,95861.0,0.02856]
[1763297217545,0.20963324,95862.0,95861.0,0.01196]
[1763297217773,0.20963324,95862.0,95860.0,0.0280319]
[1763297218733,0.20864412,95857.0,95856.0,0.01196]
[1763297222560,0.20865718,95851.0,95850.0,0.18335426]
[1763297222698,0.20865718,95851.0,95850.0,0.146]
[1763297222922,0.22399718,95851.0,95850.0,0.146]
[1763297228423,0.20867024,95845.0,95844.0,0.00013524]
[1763297228776,0.22401024,95845.0,95844.0,0.00013524]
[1763297229379,0.20866763,95847.0,95844.0,0.01241524]
[1763297229577,0.20866989,95846.0,95845.0,0.02807878]
[1763297230376,0.20867024,95845.0,95844.0,0.01241524]
[1763297230576,0.20866763,95847.0,95844.0,0.01241524]
[1763297230785,0.20867024,95845.0,95844.0,0.01241524]
[1763297231000,0.20867002,95846.0,95844.0,0.01241524]
[1763297231183,0.20866763,95847.0,95844.0,0.01241524]
[1763297231397,0.20867024,95845.0,95844.0,0.01241524]
[1763297231799,0.20867007,95846.0,95844.0,0.01241524]
[1763297232198,0.20867007,95846.0,95844.0,0.00013524]
[1763297232390,0.20867007,95846.0,95845.0,0.001]
[1763297232845,0.20867007,95846.0,95844.0,0.00113524]
[1763297234804,0.42270521,95845.0,95844.0,0.00113524]
[1763297235540,0.33914,95845.0,95844.0,0.00113524]
[1763297235728,0.35869131,95845.0,95844.0,0.00013524]
[1763297237283,0.33914,95845.0,95844.0,0.00013524]
[1763297237483,0.35868384,95845.0,95844.0,0.00013524]
[1763297237823,0.46235322,95845.0,95844.0,0.00013524]
[1763297241334,0.35868384,95845.0,95844.0,0.00013524]
[1763297244349,0.40210258,95845.0,95844.0,0.00013524]
[1763297245772,0.40410258,95845.0,95844.0,0.00013524]
[1763297246147,0.4184719,95845.0,95844.0,0.00013524]
[1763297246375,0.4194719,95845.0,95844.0,0.00013524]
[1763297246691,0.48244015,95845.0,95844.0,0.00013524]
[1763297247107,0.36068384,95845.0,95844.0,0.00013524]
[1763297250828,0.37205384,95845.0,95844.0,0.00013524]
[1763297257708,0.388423,95845.0,95844.0,0.00013524]
[1763297258424,0.37205384,95845.0,95844.0,0.00013524]
[1763297264756,0.37208592,95845.0,95844.0,0.00013524]
[1763297267242,0.37108592,95845.0,95844.0,0.00013524]
[1763297267967,0.37008592,95845.0,95844.0,0.00013524]
[1763297268169,0.35394592,95845.0,95844.0,0.00013524]
[1763297269055,0.34257592,95845.0,95844.0,0.00013524]
[1763297269458,0.01957592,95845.0,95844.0,0.00013524]
[1763297269723,0.20867007,95846.0,95844.0,0.00013524]
[1763297279160,0.00964,95845.0,95844.0,0.00013524]
[1763297279355,0.02563,95845.0,95844.0,0.00013524]
[1763297279596,0.34863,95845.0,95844.0,0.00013524]
[1763297288301,0.36819831,95845.0,95844.0,0.00013524]
[1763297293699,0.35220831,95845.0,95844.0,0.00013524]
[1763297293925,0.20867007,95846.0,95844.0,0.00013524]
[1763297294139,0.20866763,95847.0,95844.0,0.00013524]
[1763297294140,0.20866763,95847.0,95845.0,0.02486]
[1763297294476,0.20866763,95847.0,95844.0,0.00013524]
[1763297294477,0.20867024,95845.0,95844.0,0.00013524]
[1763297294878,0.20866826,95846.0,95845.0,0.02468]
[1763297295287,0.20866826,95846.0,95844.0,0.00013524]
[1763297297570,0.001,95851.0,95845.0,0.05275878]
[1763297297765,0.20866807,95846.0,95845.0,0.05275878]
[1763297298889,0.20866698,95847.0,95846.0,0.02468]
[1763297302570,0.20866698,95847.0,95846.0,0.05282757]
[1763297303087,0.20866698,95847.0,95846.0,0.02814757]
[1763297303270,0.20866698,95847.0,95845.0,0.02814757]
[1763297303636,0.20866698,95847.0,95846.0,0.02468]
[1763297305089,0.20866154,95849.0,95846.0,0.02468]
[1763297305304,0.20866589,95847.0,95846.0,0.02468]
[1763297307082,0.20867024,95845.0,95844.0,0.02828281]
[1763297307286,0.20867024,95845.0,95844.0,0.00013524]
[1763297307696,0.22460024,95845.0,95844.0,0.00013524]
[1763297310505,0.20867024,95845.0,95844.0,0.00013524]
[1763297310700,0.24002247,95845.0,95844.0,0.00013524]
[1763297313393,0.03135223,95845.0,95844.0,0.00013524]
[1763297313577,0.03135223,95845.0,95844.0,0.02828281]
[1763297313578,0.24002247,95845.0,95844.0,0.02828281]
[1763297314179,0.03135223,95845.0,95844.0,0.02828281]
[1763297315552,0.03135223,95845.0,95844.0,0.00013524]
[1763297315785,0.24002247,95845.0,95844.0,0.00013524]
[1763297316274,0.03135223,95845.0,95844.0,0.20880766]
[1763297316477,0.001,95851.0,95844.0,0.20880766]
[1763297316717,0.20965726,95851.0,95850.0,0.10402093]
[1763297317264,0.24100561,95851.0,95850.0,0.13215826]
[1763297317659,0.03234843,95851.0,95850.0,0.10402093]
[1763297318900,0.24100561,95851.0,95850.0,0.10402093]
[1763297319773,0.03234843,95851.0,95850.0,0.10402093]
[1763297320357,0.03234843,95851.0,95850.0,0.14137519]
[1763297321443,0.03234843,95851.0,95850.0,0.10402093]
[1763297321847,0.001,95851.0,95850.0,0.10402093]
[1763297322264,0.03234843,95851.0,95850.0,0.10402093]
[1763297322798,0.24100561,95851.0,95850.0,0.10402093]
[1763297322997,0.03234843,95851.0,95850.0,0.10402093]
[1763297323704,0.001,95851.0,95850.0,0.10402093]
[1763297324574,0.20965718,95851.0,95850.0,0.10402093]
[1763297324721,0.001,95851.0,95850.0,0.10402093]
[1763297325297,0.001,95851.0,95850.0,0.31268029]
[1763297327010,0.001,95851.0,95850.0,0.10402093]
[1763297329738,0.001,95851.0,95850.0,0.31268029]
[1763297330144,0.001,95851.0,95850.0,0.10402093]
[1763297331129,0.001,95851.0,95850.0,0.31268029]
[1763297331337,0.001,95851.0,95850.0,0.10402093]
[1763297331950,0.20965718,95851.0,95850.0,0.10402093]
[1763297335150,0.001,95851.0,95850.0,0.10402093]
[1763297336239,0.001,95851.0,95850.0,0.31268029]
[1763297337657,0.001,95851.0,95850.0,0.10402093]
[1763297341854,0.001,95851.0,95850.0,0.31268029]
[1763297342428,0.001,95851.0,95850.0,0.45868029]
[1763297342600,0.001,95851.0,95850.0,0.35609903]
[1763297342811,0.2085476,95902.0,95860.0,0.01043187]
[1763297342986,0.01067121,95910.0,95894.0,0.02812281]
[1763297343186,0.20853317,95908.0,95901.0,0.01171]
[1763297343397,0.20854494,95903.0,95901.0,0.01171]
[1763297343599,0.20854494,95903.0,95902.0,0.02288]
[1763297344094,0.20854494,95903.0,95902.0,0.05100281]
[1763297344296,0.20868003,95903.0,95902.0,0.02288]
[1763297344770,0.20968003,95903.0,95902.0,0.02288]
[1763297345130,0.21068003,95903.0,95902.0,0.02288]
[1763297345523,0.20968003,95903.0,95902.0,0.03037528]
[1763297345926,0.21168003,95903.0,95902.0,0.03037528]
[1763297346168,0.20968003,95903.0,95902.0,0.02288]
[1763297346753,0.20855709,95897.0,95895.0,0.02812281]
[1763297346952,0.20856579,95893.0,95892.0,0.02812281]
[1763297347286,0.20856579,95893.0,95891.0,0.02812281]
[1763297347612,0.20856579,95893.0,95890.0,0.02288]
[1763297347886,0.20856579,95893.0,95892.0,0.02801142]
[1763297348266,0.20956579,95893.0,95892.0,0.02145694]
[1763297348675,0.20956579,95893.0,95892.0,0.04433694]
[1763297348676,0.20856579,95893.0,95892.0,0.04433694]
[1763297348841,0.20857449,95889.0,95886.0,0.02801142]
[1763297349076,0.20860206,95878.0,95872.0,0.04025142]
[1763297349284,0.2086093,95873.0,95870.0,0.02801142]
[1763297349491,0.20861583,95870.0,95869.0,0.02801142]
[1763297349747,0.20861583,95870.0,95868.0,0.02801142]
[1763297350190,0.20861077,95874.0,95868.0,0.02801142]
[1763297350435,0.20861638,95870.0,95868.0,0.07029236]
[1763297351933,0.00964,95883.0,95869.0,0.02288]
[1763297352132,0.00977504,95883.0,95869.0,0.05090501]
[1763297352345,0.20861319,95872.0,95869.0,0.05090501]
[1763297352566,0.00013504,95883.0,95880.0,0.20859221]
[1763297352806,0.00013504,95883.0,95882.0,0.02757]
[1763297352970,0.00013504,95883.0,95882.0,0.01224]
[1763297353634,0.00013504,95883.0,95882.0,0.15824]
[1763297353841,0.00013504,95883.0,95882.0,0.27440416]
[1763297354054,0.00113504,95883.0,95882.0,0.27440416]
[1763297354355,0.00013504,95883.0,95882.0,0.27440416]
[1763297354671,0.00013504,95883.0,95882.0,0.23476232]
[1763297356558,0.00013504,95883.0,95882.0,0.19740612]
[1763297357450,0.00013504,95883.0,95882.0,0.30142705]
[1763297359700,0.00013504,95883.0,95882.0,0.33878325]
[1763297360206,0.00013504,95883.0,95882.0,0.30142705]
[1763297360422,0.00013504,95883.0,95882.0,0.35767268]
[1763297360993,0.00013504,95883.0,95882.0,0.30142705]
[1763297361793,0.00013504,95883.0,95882.0,0.33728033]
[1763297362570,0.00013504,95883.0,95882.0,0.37692217]
[1763297363242,0.00013504,95883.0,95882.0,0.35741375]
[1763297364430,0.00013504,95883.0,95882.0,0.30142705]
[1763297366280,0.00013504,95883.0,95882.0,0.15824]
[1763297366482,0.00013504,95883.0,95882.0,0.146]
[1763297366688,0.00013504,95883.0,95882.0,0.1740258]
[1763297366937,0.00013504,95883.0,95882.0,0.146]
[1763297369170,0.20858972,95882.0,95879.0,0.18336328]
[1763297369353,0.20858972,95882.0,95880.0,0.03736328]
[1763297369559,0.00013504,95883.0,95880.0,0.05992328]
[1763297369850,0.00013504,95883.0,95882.0,0.10402093]
[1763297370638,0.00013504,95883.0,95882.0,0.12658093]
[1763297370864,0.20872258,95883.0,95882.0,0.15464953]
[1763297371084,0.20872258,95883.0,95881.0,0.02806847]
[1763297371290,0.2086006,95877.0,95876.0,0.03736328]
[1763297371491,0.20861148,95872.0,95868.0,0.02809256]
[1763297371702,0.20862236,95867.0,95866.0,0.02809256]
[1763297371920,0.20862236,95867.0,95858.0,0.04932328]
[1763297371921,0.20863542,95861.0,95858.0,0.04932328]
[1763297372131,0.20863542,95861.0,95858.0,0.01196]
[1763297372799,0.20863542,95861.0,95860.0,0.02810743]
[1763297372951,0.20863542,95861.0,95858.0,0.04006743]
[1763297373149,0.02357,95880.0,95859.0,0.03175307]
[1763297373348,0.01952071,95875.0,95867.0,0.10402093]
[1763297373548,0.20860417,95876.0,95875.0,0.02716]
[1763297373859,0.20860417,95876.0,95875.0,0.01196]
[1763297374885,0.20960417,95876.0,95875.0,0.01196]
[1763297375086,0.21060417,95876.0,95875.0,0.01196]
[1763297375525,0.20960417,95876.0,95875.0,0.01836774]
[1763297375945,0.21060417,95876.0,95875.0,0.01836774]
[1763297378742,0.21060417,95876.0,95875.0,0.01196]
[1763297381052,0.20862018,95868.0,95867.0,0.02810743]
[1763297381254,0.20860641,95875.0,95867.0,0.02810743]
[1763297381483,0.20861612,95870.0,95868.0,0.01196]
[1763297382037,0.20861766,95870.0,95868.0,0.01196]
[1763297382362,0.20861345,95872.0,95868.0,0.01196]
[1763297382567,0.20861345,95872.0,95868.0,0.03597]
[1763297382851,0.20861706,95870.0,95869.0,0.01196]
[1763297384000,0.20961706,95870.0,95869.0,0.01196]
[1763297384151,0.001,95870.0,95869.0,0.01956374]
[1763297384524,0.001,95870.0,95869.0,0.14444647]
[1763297384737,0.002,95870.0,95869.0,0.14444647]
[1763297384948,0.002,95870.0,95869.0,0.20046687]
[1763297385149,0.002,95870.0,95869.0,0.14444647]
[1763297385624,0.001,95870.0,95869.0,0.14444647]
[1763297386611,0.001,95870.0,95869.0,0.29044647]
[1763297386835,0.001,95870.0,95869.0,0.26958467]
[1763297387052,0.00013504,95883.0,95870.0,0.20861583]
[1763297387243,0.00013504,95883.0,95869.0,0.26958467]
[1763297387244,0.00013504,95883.0,95882.0,0.05521441]